Cogmind - Beta 14 @@@ ROGUE MODE // 2024.11.15 @ 03:21:13 Player: laeb2 Result: Destroyed by G-47 Trooper with Particle Gun Performance ------------- Evolutions (2) 1000 Regions Visited (3) 600 Robots Destroyed (97) 485 Value Destroyed (2447) 2447 Prototype IDs (4) 80 Alien Tech Used (0) 0 Bonus (376) 376 TOTAL SCORE: 4988 Bonus ------- High Alert Combat Kills 376 Cogmind --------- Core Integrity 0/550 Matter 309/400 Energy 88/100 System Corruption 0% Temperature Cool (56) Movement Core (700) Ox13 Location -8/Materials Parts ------- > --- POWER (1) -------- (None) > --- PROPULSION (3) --- (None) > --- UTILITY (4) ------ High-capacity Storage Unit Medium Matter Pod Improved Targeting Computer > --- WEAPON (3) ------- (None) > --- INVENTORY (20) --- Improved Datajack Great Maul Peak State ------------ > --- POWER ------------ Light Deuterium Engine > --- PROPULSION ------- Light Treads Improved Treads Improved Treads > --- UTILITY ---------- Improved Heat Sink High-capacity Storage Unit Improved Targeting Computer > --- WEAPON ----------- Advanced Beam Cannon Light Assault Rifle Improved Assault Rifle > --- INVENTORY -------- Light Ion Engine Light Treads Medium Matter Pod Advanced Beam Cannon Light Assault Rifle Grenade Launcher Grenade Launcher Improved Datajack Great Maul [Rating: 22] Favorites ----------- Power Light Ion Engine Engine Light Ion Engine Propulsion Light Treads Treads Light Treads Leg Aluminum Leg Utility Medium Storage Unit Device Seismic Detector Storage Medium Storage Unit Processor Improved Targeting Computer Hackware Hacking Suite Protection Light Armor Plating Weapon Light Assault Rifle Energy Gun Improved EM Shotgun Energy Cannon Advanced Beam Cannon Ballistic Gun Light Assault Rifle Launcher Grenade Launcher Slashing Weapon Katana Build | -11 -10 -9 -8 ------- Run | Yrd Mat Mat Mat Slots Evolved 4 | . . 2 2 Power . | . . . . Propulsion 1 | . . 1 . Utility 2 | . . . 2 Weapon 1 | . . 1 . Parts Attached 52 | 7 8 18 19 Power 4 | 1 . 1 2 Engine 4 | 1 . 1 2 Core . | . . . . Reactor . | . . . . Propulsion 14 | 2 2 8 2 Treads 11 | 2 2 5 2 Leg 3 | . . 3 . Wheel . | . . . . Hover . | . . . . Flight . | . . . . Utility 11 | 2 2 2 5 Device 2 | 1 . . 1 Storage 4 | 1 1 . 2 Processor 3 | . . 2 1 Hackware 1 | . 1 . . Protection 1 | . . . 1 Artifact . | . . . . Weapon 23 | 2 4 7 10 Energy Gun 3 | . . 2 1 Energy Cannon 3 | . . 1 2 Ballistic Gun 12 | 2 3 4 3 Ballistic Cannon . | . . . . Launcher 4 | . 1 . 3 Special Weapon . | . . . . Impact Weapon . | . . . . Slashing Weapon 1 | . . . 1 Piercing Weapon . | . . . . Special Melee Weapon . | . . . . Unidentified Prototypes 4 | . . 3 1 Parts Lost 22 | . 1 2 19 Power 4 | . . 1 3 Propulsion 6 | . . 1 5 Utility 2 | . . . 2 Weapon 10 | . 1 . 9 Highest Loss Streak 11 | . 1 1 11 To Critical Strikes . | . . . . Average Slot Usage (%) 95 | . 100 95 88 Engine 11 | . 14 10 6 Treads 25 | . 28 23 22 Leg 2 | . . 5 . Device 3 | . 4 . 5 Storage 12 | . 14 11 10 Processor 5 | . . 7 11 Hackware 5 | . 9 3 . Protection 1 | . . . 5 Energy Cannon 4 | . . 6 8 Ballistic Gun 24 | . 28 26 16 Peak Build Rating 22 | 7 10 17 22 Average Rating 12 | 5 8 13 18 On Entrance 8 | . 7 10 17 Naked Turns . | . . . . Heaviest Build 57 | 12 17 23 57 Greatest Support 66 | 40 40 66 66 Greatest Overweight (x) 16 | . . 2 16 Average Overweight (x) . | . . . . Largest Inventory Capacity 20 | 8 10 10 20 Average Capacity 11 | 7 9 10 18 Most Carried 10 | 6 10 10 10 Average Carried 9 | 4 9 9 8 Final Capacity 20 | 8 10 10 20 Final Carried 10 | 6 10 10 2 Class Distribution -------------------- 45% | Mutant 27% | Scavenger-Gunner 27% | Gunner Dominant Class ---------------- Mutant | -10/Materials Gunner | -9/Materials Scavenger-Gunner | -8/Materials Resources | -11 -10 -9 -8 ----------- Run | Yrd Mat Mat Mat Matter Collected 1427 | 298 382 322 425 Remotely . | . . . . Salvage Created 2805 | 139 502 860 1304 Parts 198 | 11 48 67 72 Haulers Intercepted 7 | . 2 4 1 Recyclers Shooed 3 | . . . 3 Parts Field Recycled . | . . . . Retrieved Matter . | . . . . Parts Self-Destructed . | . . . . Prevented . | . . . . Kills | -11 -10 -9 -8 ------- Run | Yrd Mat Mat Mat Combat Hostiles Destroyed 60 | . 11 18 31 Guns 34 | . 6 16 12 Cannons 6 | . . 2 4 AOE 20 | . 5 . 15 Classes Destroyed 14 | 2 7 1 4 Worker 11 | . 3 . 8 Builder 2 | . 1 . 1 Tunneler 3 | 3 . . . Hauler 7 | . 2 4 1 Recycler 3 | 1 . . 2 Operator 2 | . 2 . . Watcher 9 | . 3 4 2 Swarmer 18 | . 3 7 8 Grunt 31 | . 8 10 13 Brawler 2 | . . . 2 Duelist 3 | . . . 3 Sentry 1 | . . 1 . Specialist 4 | . . . 4 Hunter 1 | . . . 1 Best Kill Streak 27 | 3 6 7 27 Combat Bots Only 17 | . 5 6 17 Max Kills in Single Turn 5 | 1 5 2 4 Gunslinging 1 | . . 1 . Exploded 3 | . 3 . 3 Melee . | . . . . Uniques/NPCs Destroyed . | . . . . Combat | -11 -10 -9 -8 -------- Run | Yrd Mat Mat Mat Hostile Shots Fired 292 | . 39 68 185 Missed 80 | . 7 22 51 Damage Taken 3539 | . 613 518 2408 Core 846 | . 196 86 564 Absorbed by Shields . | . . . . Core Remaining (%) 66 | 100 21 78 . Volleys Fired 196 | 7 62 51 76 Largest 3 | 2 2 3 3 Hottest 156 | 40 40 111 156 Shots Fired 486 | 14 121 153 198 Gun 401 | 14 120 141 126 Cannon 69 | . . 12 57 Launcher 16 | . 1 . 15 Special . | . . . . Kinetic 395 | 14 120 137 124 Thermal 71 | . . 12 59 Explosive 16 | . 1 . 15 Electromagnetic 4 | . . 4 . Robot Hit Streak 16 | 8 10 11 16 Robot Miss Streak 3 | 1 3 3 3 Penetration Max . | . . . . Secondary Targets 8 | . 1 5 2 Max Gunslinging Chain 1 | . 1 1 1 Shots Hit Robots 339 | 10 77 101 151 Core Hits 189 | 6 34 52 97 Critical Kills 2 | 1 . 1 . Critical Parts Destroyed 3 | . 1 . 2 Critical Strikes 6 | 1 1 1 3 Meltdown 1 | . . 1 . Destroy 4 | 1 1 . 2 Sever 1 | . . . 1 Melee Attacks 1 | . . . 1 Impact . | . . . . Slashing 1 | . . . 1 Piercing . | . . . . Sneak Attacks . | . . . . Combat Hostiles . | . . . . Follow-up Attacks . | . . . . Damage Inflicted 6539 | 109 1448 1066 3916 Guns 2961 | 109 735 818 1299 Cannons 1097 | . . 215 882 Explosions 2438 | . 713 33 1692 Melee 34 | . . . 34 Ramming 9 | . . . 9 Kinetic 2865 | 109 735 762 1259 Thermal 1576 | . 406 248 922 Explosive 1999 | . 307 . 1692 Electromagnetic 56 | . . 56 . Impact . | . . . . Slashing 34 | . . . 34 Piercing . | . . . . Highest Corruption 3 | . 3 . . Average Corruption 2 | . 2 . . Corruption Purged . | . . . . Corruption Blocked . | . . . . Effects 10 | . 10 . . Message Errors 2 | . 2 . . Matter Fused 2 | . 2 . . Heat Flow Errors 2 | . 2 . . Energy Discharges 1 | . 1 . . Data Loss (minor) 1 | . 1 . . Weapon Failures 2 | . 2 . . Overload Shots . | . . . . Overflow Damage 208 | . 167 . 41 Projectiles 17 | . . . 17 Explosions 191 | . 167 . 24 Melee . | . . . . Knockbacks . | . . . . Impact . | . . . . Kinetic . | . . . . Secondary . | . . . . Self-Inflicted Damage 460 | . 222 . 238 Shots 11 | . 3 . 8 Rammed . | . . . . Targets Rammed 1 | . . . 1 Kicked . | . . . . Crushed 1 | . . . 1 Highest Temperature 379 | . 131 133 379 Average Temperature 62 | . 25 35 107 Received Heat Transfer 1182 | . 171 228 783 Effects 3 | . . . 3 Shutdowns 1 | . . . 1 Energy Bleed 1 | . . . 1 Interference 1 | . . . 1 Siege Activations . | . . . . Robots Corrupted . | . . . . Combat Hostiles . | . . . . Parts Fried 1 | . . 1 . Impact Corruptions . | . . . . Robots Melted 1 | . . 1 . Combat Hostiles . | . . . . Parts Melted 3 | . . 1 2 Heat Transferred 2271 | . 250 470 1551 Parts Sabotaged . | . . . . Parts Stolen . | . . . . Parts Stripped . | . . . . Power Chain Reactions 1 | . . 1 . Alert | -11 -10 -9 -8 ------- Run | Yrd Mat Mat Mat Peak Influence 938 | 20 414 313 938 Initial 50 | . 13 50 20 Average 203 | 8 188 150 376 Maximum Alert Level 3 | . 2 1 3 Low Security (%) 61 | 100 55 68 55 Level 1 28 | . 40 31 1 Level 2 3 | . 4 . 8 Level 3 6 | . . . 34 Level 4 . | . . . . Level 5 . | . . . . High Security . | . . . . Max Security . | . . . . Squads Dispatched 13 | . 3 1 9 Investigation 3 | . 2 1 . Extermination . | . . . . Reinforcement 7 | . 1 . 6 Assault 2 | . . . 2 Garrison 1 | . . . 1 Intercept . | . . . . Searches Triggered . | . . . . Construction Impeded 1 | . . . 1 Haulers Reinforced . | . . . . Active Scanning Responses . | . . . . Cargo Convoy Interrupts . | . . . . Stealth | -11 -10 -9 -8 --------- Run | Yrd Mat Mat Mat Distress Signals 6 | . 1 . 5 Communications Jammed . | . . . . Distress Signals . | . . . . Times Spotted 107 | . 26 28 53 Peak Tracking Total 13 | . 5 4 13 Tactical Retreats 9 | . 3 3 3 Traps | -11 -10 -9 -8 ------- Run | Yrd Mat Mat Mat Traps Triggered 3 | . 3 . . Indirectly . | . . . . Trap Hack Attempts . | . . . . Triggered . | . . . . Disarmed . | . . . . Reprogrammed 6 | . 6 . . Reused . | . . . . Traps Extracted . | . . . . Installed . | . . . . Triggered . | . . . . Machines | -11 -10 -9 -8 ---------- Run | Yrd Mat Mat Mat Machines Disabled 10 | . 6 2 2 Max in Single Turn 3 | . 3 1 1 Garrison Access 1 | . . . 1 Machines Repaired . | . . . . Machines Dismantled . | . . . . Machines Sabotaged . | . . . . Overloaded Fab Kills . | . . . . Hacking | -11 -10 -9 -8 --------- Run | Yrd Mat Mat Mat Machines Accessed 15 | . 8 6 1 Terminals 13 | . 6 6 1 Fabricators . | . . . . Repair Stations . | . . . . Recycling Units 2 | . 2 . . Scanalyzers . | . . . . Garrison Access . | . . . . Total Hacks 49 | . 24 19 6 Successful 29 | . 15 10 4 Failed 19 | . 8 9 2 Catastrophic 2 | . 1 1 . Database Lockouts 1 | . 1 . . Manual 29 | . 15 13 1 Terminals 45 | . 20 19 6 Fabricators . | . . . . Repair Stations . | . . . . Recycling Units 4 | . 4 . . Scanalyzers . | . . . . Garrison Access . | . . . . Terminal Hacks 14 | . 7 4 3 Robot Analysis 3 | . 2 . 1 Branch Access Points 1 | . 1 . . Emergency Access Points 1 | . . . 1 Alert Level 3 | . 1 1 1 Unreport Threat 3 | . 1 2 . Locate Traps 1 | . 1 . . Reprogram Traps 1 | . 1 . . Zone Layout 1 | . . 1 . Fabricator Hacks . | . . . . Repair Station Hacks . | . . . . Recycling Unit Hacks 1 | . 1 . . Report Inventory 1 | . 1 . . Scanalyzer . | . . . . Garrison Access Hacks . | . . . . Unauthorized Hacks 14 | . 7 6 1 Terminals 12 | . 5 6 1 Botnet 11 | . 5 5 1 Operators 1 | . . 1 . Fabricators . | . . . . Repair Stations . | . . . . Recycling Units 2 | . 2 . . Tunnel 2 | . 2 . . Scanalyzers . | . . . . Garrison Access . | . . . . Data Cores Recovered . | . . . . Used . | . . . . Hacking Detections 11 | . 5 5 1 Full Trace Events 2 | . . 2 . Feedback Events . | . . . . Feedback Blocked . | . . . . Robot Schematics Acquired . | . . . . Robots Built . | . . . . Authchips . | . . . . Time . | . . . . Total Robot Build Rating . | . . . . Part Schematics Acquired . | . . . . Parts Built . | . . . . Authchips . | . . . . Time . | . . . . Total Part Build Rating . | . . . . Parts Repaired . | . . . . Time . | . . . . Parts Recycled . | . . . . Recycled Matter . | . . . . Retrieved Matter . | . . . . Retrieved Components . | . . . . Parts Scanalyzed . | . . . . Part Schematics Acquired . | . . . . Parts Damaged . | . . . . Bothacking | -11 -10 -9 -8 ------------ Run | Yrd Mat Mat Mat Used RIF Installer . | . . . . Robots Hacked . | . . . . Non-combat . | . . . . Combat . | . . . . Robot Hacks Applied . | . . . . Relay Couplers Released 1 | . . . 1 Machine Destruction 1 | . . . 1 Fabnet Peak Effective % . | . . . . Robots Rewired . | . . . . Allies Hacked . | . . . . Hacks Repelled . | . . . . Allies | -11 -10 -9 -8 -------- Run | Yrd Mat Mat Mat Total Allies . | . . . . Largest Group . | . . . . Highest-Rated Group . | . . . . Highest-Rated Ally . | . . . . Total Orders . | . . . . Ally Attacks . | . . . . Total Damage . | . . . . Kills . | . . . . Allies Corrupted . | . . . . Allies Melted . | . . . . Intel | -11 -10 -9 -8 ------- Run | Yrd Mat Mat Mat Robot Analysis Total 3 | . 2 . 1 Derelict Logs Recovered . | . . . . Drone Launches . | . . . . Drone Recoveries . | . . . . Exploration | -11 -10 -9 -8 ------------- Run | Yrd Mat Mat Mat Turns Passed 2532 | 117 1019 898 498 Spaces Moved 1016 | 54 479 361 122 Core 16 | 13 . . 3 Treads 923 | 41 479 284 119 Legs 77 | . . 77 . Wheels . | . . . . Hover . | . . . . Flight . | . . . . Fastest Speed 50 | 50 160 120 160 Average Speed 158 | 133 160 152 182 Slowest Speed 850 | 160 160 260 850 Overloaded Moves . | . . . . Propulsion Burnouts . | . . . . Robots Hopped . | . . . . Cave-ins Triggered . | . . . . Exploration Rate (%) 34 | 5 81 27 23 Regions Visited 3 Branch Regions . Pre-discovered Areas 2 | . 2 . . Known Exits Taken . | . . . . Unknown Exits Taken 3 | 1 1 1 . Scrap Searched . | . . . . Spaces Dug 4 | . . . 4 Terrain Destroyed 167 | . 81 6 80 Melee . | . . . . Projectile 4 | . . . 4 AOE 163 | . 81 6 76 Terrain Rammed . | . . . . Walls Destroyed . | . . . . Machines Disabled . | . . . . Actions | -11 -10 -9 -8 --------- Run | Yrd Mat Mat Mat Total 1589 | 86 630 621 252 Wait 260 | 7 61 168 24 Move 1013 | 53 478 360 122 Hop . | . . . . Pick Up 37 | 12 11 7 7 Fast Attach 13 | 1 . 12 . Attach 25 | 6 1 3 15 Detach . | . . . . Swap 14 | . 7 3 4 Drop 29 | . 10 17 2 Fire 196 | 7 62 51 76 Melee 1 | . . . 1 Ram . | . . . . Kick . | . . . . Crush 1 | . . . 1 Escape Stasis . | . . . . Rewire . | . . . . Trap . | . . . . Miscellaneous . | . . . . Route ------- -11/Scrapyard -10/Materials (discovered 3 exits: *Mat x2 / Min) -9/Materials (discovered 2 exits: *Mat / [*Min]) -8/Materials History --------- Turn | Location | Event 12 | -11/Scrapyard | Discovered new exit (range 16) 118 | -11/Scrapyard | Entered Materials 314 | -10/Materials | Build established: Mutant 539 | -10/Materials | Discovered new exit (range 6) 730 | -10/Materials | Core integrity fell below 50% 883 | -10/Materials | Discovered new exit (range 14) 1047 | -10/Materials | Central database locked down 1047 | -10/Materials | Identified exit to Mines 1137 | -10/Materials | Entered another Materials area 1137 | -9/Materials | Evolved 2 slots: Propulsion x1, Weapon x1 1448 | -9/Materials | Discovered new exit (range 16) 1467 | -9/Materials | Build established: Gunner 1834 | -9/Materials | Build established: Scavenger-Gunner 1966 | -9/Materials | Discovered new exit (range 10) 2035 | -9/Materials | Entered another Materials area 2035 | -8/Materials | Evolved 2 slots: Utility x2 2316 | -8/Materials | Garrison activated, responded to threat 2394 | -8/Materials | Destroyed 17 combat bots 2435 | -8/Materials | First assault squad dispatched 2491 | -8/Materials | Destroyed 10 combat bots 2500 | -8/Materials | Lost 11 parts (1p4n1u5w) 2509 | -8/Materials | Core integrity fell below 50% 2527 | -8/Materials | Core integrity fell below 20% 2533 | -8/Materials | Destroyed by G-47 Trooper with Particle Gun Last Messages --------------- 02512_ K-01 Serf collects debris. 02512_ U-05 Engineer forms the Earth. 02513_ R-06 Scavenger collects Lgt. Ion Engine. 02514_ Acquired 60 matter. 02521_ Acquired Prototype Energy Gun. 02521_ Katana destroyed. 02522_ Identified Adv. Beam Rifle. 02522_ Lgt. Treads destroyed. 02523_ L-31 Rogue destroyed. 02524_ Adv. Beam Cannon destroyed. 02525_ R-06 Scavenger collects Shotgun. 02526_ Adv. Beam Rifle severed. 02529_ The unstable cave ceiling collapses. 02529_ 27 Matter crushed. 02529_ L-31 Rogue destroyed. 02529_ R-06 Scavenger collects Aluminum Leg. 02531_ Lgt. Assault Rifle destroyed. 02532_ K-01 Serf collects debris. 02532_ R-06 Scavenger collects Lgt. Nuclear Core. Map ----- +----------------------------------------------------+ | ?????????????????????????????????????????????? | | ?????????????????????????????????????????????? | | ?????????????????????????????????????????????? | | ?????????????????????????????????????????????? | | ?????????????????????????????????????????????? | | ?????????????????????????????????????????????? | | ?????????????????????????????????????????????? | | ?????????????????????????????????????????????? | | ?????????????????????????????????????????????? | | ?????????????????????????????????????????????? | | ?????????????????????????????????????????????? | | ??????????????????????????H??????????????????? | | ?????????????????????????????????????????????? | | ?????????????????????????????????????????????? | | ?????????????????????????????????????????????? | | ?????????????????????????????????????????????? | | ?????????????????????????????????????????????? | | ?????????????????????????????????????????????? | | ?????????????""??????????????????????????????? | | ????????????""" ##??????????????????????????? | | ????????????? % "" ##?#####?????????????????? | | ?????????????? !G"# ## #?????????????????? | | ??????????????? " ####??????????????? | | ????????????""" #######[## #??????????????? | | ?????????? ""% u# %[*#/*#################### | | ?????? ! k[@%!=%! **= [!%!! | | ?????? #% [g!ig#! ################ | | ??????????????#+##= #!#%g ! ##?????????????? | | ????????????? !#%r# ###??????????????? | | ???????????# [[ # # #???????????????? | | ???????????# [ # #%#####???????????????? | | ???????????# #### #???????????????????? | | ???????????# = ????# #???????????????????? | | ???????????# ????# #???????????????????? | | ???????????# ?????# #???????????????????? | | ???????????# ?????# #???????????????????? | | ???????????# ??????#"#???????????????????? | | ????????????#####??????#%#???????????????????? | | ???????????????????????#"????????????????????? | | ????????????????????????#????????????????????? | | ?????????????????????????????????????????????? | | ?????????????????????????????????????????????? | | ?????????????????????????????????????????????? | | ?????????????????????????????????????????????? | | ?????????????????????????????????????????????? | | ?????????????????????????????????????????????? | | ?????????????????????????????????????????????? | | ?????????????????????????????????????????????? | | ?????????????????????????????????????????????? | | ?????????????????????????????????????????????? | +----------------------------------------------------+ Best States ------------- Heat Dissipation 45 Energy Generation 14 Energy Capacity 250 Matter Stores 305 Matter Capacity 400 Sight Range 16 Terrain Scan Density 10 Armor Coverage 150 Evasion (%) 50 Targeting Accuracy 12 Recoil Reduction 3 Salvage Targeting 1 Offensive Hacking 10 Item Schematics ----------------- None Robot Schematics ------------------ None Fabricated ------------ Nothing Alien Tech Used ----------------- None Achievements -------------- None Challenges ------------ None Game ------ Seed CloakTransportBotcube Manual? 0 Play Time 00:24:04 Cumulative 79.0 hours Start 2024.11.15 @ 02:59:16 End 2024.11.15 @ 03:21:13 Sessions 1 Manual Loads 0 Difficulty Rogue Special Mode None Game No. 96 Rogue 96 Adventurer 0 Explorer 0 Win Type - Total 1 Types 1/0/0/0/0/0/0/0/0 Lore% 54 Gallery% 54 Achievement% 50 Wizard Run 0 Options --------- Layout 2 ASCII 0 Keyboard 0 Movement Mouse Keybinds 0 Fullscreen 1 Font 32/SmallcapsGlow Map View 50x44 Zoom Use 0% Tactical HUD 1 Map Filters NONE Filters NONE Steam 1 RUN: 395b3a3e-dcc7-4934-a857-917f7650e834